Workbook

Sheet IES
D2: Immobilienentwicklungssimulator IES | I2: Projekt: | K2: Lösungshinweis | AA2: UEO | AC2: 2020-10-21
D3: Données de base | S3: Evaluation
D4: 1 Terrain / Propriété | F4: Usage résidenciel | K4: Utilisation commerciale | P4: Total | S4: Coût de création/constru | T4: 0 | U4: Rundung | W4: =F4 -> Usage résidenciel | Z4: =K4 -> Utilisation commerciale | AC4: Total
C5: 10 | D5: Superficie GSF | G5: 816 | I5: =VALUE(G5) -> 816 | L5: 0 | N5: =VALUE(L5) -> 0 | P5: =N5+I5 -> 816 | S5: CFC 0 Terrain | U5: m2 * CHF/m2 | X5: =ROUND(I6*I5,$T$4) -> 0 | AA5: =ROUND(N6*N5,$T$4) -> 0 | AD5: =AA5+X5 -> 0
C6: 11 | D6: Coût du terrain | I6: 0 | N6: 2075 | P6: =IF(P5=0,0,(I5*I6+N5*N6)/P5) -> 0 | S6: CFC 0 Frais accessoires GS | U6: du terrain | W6: 0.01 | X6: =ROUND(X5*$W6,$T$4) -> 0 | Z6: =W6 -> 0.01 | AA6: =ROUND(AA5*$Z6,$T$4) -> 0 | AD6: 0
D7: 2 Superficies et volumes | S7: CFC 0 Impôt sur les gains immob. | U7: de gain immob. | W7: 0.4 | X7: =IF(G23=2,0,ROUND((X20-X5)*$W7,$T$4)) -> 0 | Z7: 0.4 | AA7: =IF(L23=2,0,ROUND((AA20-AA5)*$W7,$T$4)) -> 0 | AD7: =AA7+X7 -> 0
C8: 20 | D8: Surface de plancher SP | G8: 285 | I8: =VALUE(G8) -> 285 | L8: 0 | N8: =VALUE(L8) -> 0 | P8: =N8+I8 -> 285 | S8: CFC 1 Travaux préparatoires | U8: de BKP 2 Baukosten/cout de const | W8: 0.03 | X8: =ROUND($W8*X9,$T$4) -> 20002 | Z8: =W8 -> 0.03 | AA8: =ROUND($Z8*AA9,$T$4) -> 0 | AD8: =AA8+X8 -> 20002
C9: =C8+1 -> 21 | D9: H.S.D. étage au dessus du sol (un seul étage) | I9: 260 | N9: 397 | P9: =IF(P8=0,0,(I9*I8+N9*N8)/P8) -> 260 | S9: CFC 2 Coûts de construction | U9: m3 * CHF/m3 | X9: =I45 -> 666749.2 | AA9: =N45 -> 0 | AD9: 666749.2
C10: =C9+1 -> 22 | D10: Optimisation de surface au-dessus du sol | G10: 800 | I10: =G10/1000 -> 0.8 | L10: 850 | N10: =L10/1000 -> 0.85 | P10: =IF(P8=0,0,(I8*I10+N8*N10)/P8) -> 0.8 | S10: CFC 4 Aménagement ext. | U10: CHF/m2 GSF | W10: 200 | X10: =ROUND($W10*I5,$T$4) -> 163200 | Z10: 200 | AA10: =ROUND($Z10*N5,$T$4) -> 0 | AD10: =AA10+X10 -> 163200
C11: 23 | D11: Surface de plancher sous-sol (hors PP) | G11: 142 | I11: =VALUE(G11) -> 142 | L11: 0 | N11: =VALUE(L11) -> 0 | P11: =N11+I11 -> 142 | S11: CFC 5 Frais supplémentaire | U11: BKP 1-4 exkl. Honorare | W11: 0.098 | X11: =ROUND($W11*(X8+X9+X10),$T$4) -> 83295 | Z11: 0.098 | AA11: =ROUND($Z11*(AA8+AA9+AA10),$T$4) -> 0 | AD11: =AA11+X11 -> 83295
C12: 24 | D12: Hauteur du plancher sous-sol | I12: 260 | N12: 300 | P12: =IF(P11=0,0,(I12*I11+N12*N11)/P11) -> 260 | S12: CFC 5 Financement | T12: 0.4 | U12: von BKP 1-5, 18 Monate | W12: 0.02 | X12: =IF(G23<>0,0,ROUND((X8+X9+X13+X10+X11)*$T12*1.5*W12,$T$4)) -> 0 | Z12: =W12 -> 0.02 | AA12: =IF(L23<>0,0,ROUND((AA8+AA9+AA13+AA10+AA11)*$T12*1.5*Z12,$T$4)) -> 0 | AD12: =AA12+X12 -> 0
C13: 25 | D13: Optimisation de l’espace UG | G13: 207 | I13: =G13/1000 -> 0.207 | L13: 250 | N13: =L13/1000 -> 0.25 | P13: =IF(P11=0,0,(I11*I13+N11*N13)/P11) -> 0.207 | S13: CFC 6 Total des frais | U13: von BKP 1-4 | W13: 0.222 | X13: =ROUND($W13*(X8+X9+X10),$T$4) -> 188689 | Z13: 0.222 | AA13: =ROUND($Z13*(AA8+AA9+AA10),$T$4) -> 0 | AD13: =AA13+X13 -> 188689
C14: 26 | D14: Bauvolumen GV | I14: =I8*I9*0.01+I11*I12*0.01 -> 1110.2 | N14: =N8*N9*0.01+N11*N12*0.01 -> 0 | P14: =N14+I14 -> 1110.2 | S14: CFC 7 Marketing | U14: von Ertrag | W14: =IF(G24=0,11%,4%) -> 0.04 | X14: =IF(G24=0,ROUND(W$14*I53,$T$4),ROUND(W$14*I59,$T$4)) -> 93576 | Z14: =IF(L24=0,17%,4%) -> 0.17 | AA14: =IF(L24=0,ROUND(Z$14*N53,$T$4),ROUND(Z$14*N59,$T$4)) -> 0 | AD14: 93576
C15: 27 | D15: Ertragsfläche / Surface de rendement | I15: =I8*I10+I11*I13 -> 257.394 | N15: =N8*N10+N11*N13 -> 0 | P15: =N15+I15 -> 257.394 | S15: CFC 8 Contribution propre | U15: von BKP 0-4 | W15: 0.025 | X15: =ROUND($W15*(X8+X9+X10+X5+X6),$T$4) -> 21249 | Z15: 0.025 | AA15: =ROUND($Z15*(AA8+AA9+AA10+AA5+AA6),$T$4) -> 0 | AD15: 21249
C16: 28 | D16: Nombre PP intérieur | G16: 0 | I16: =VALUE(G16) -> 0 | L16: 0 | N16: =VALUE(L16) -> 0 | P16: =N16+I16 -> 0 | S16: Coûts nets | X16: =SUM(X5:X15) -> 1236760.2 | AA16: =SUM(AA5:AA15) -> 0 | AD16: 1236760.2
C17: 29 | D17: Nombre PP extérieur | G17: 2 | I17: =VALUE(G17) -> 2 | L17: 0 | N17: =VALUE(L17) -> 0 | P17: =N17+I17 -> 2 | S17: TVA | T17: 0.077 | U17: von BKP 1-8 | X17: =ROUND($T17*(X8+X9+X13+X10+X11+X14+X15),$T$4) -> 95231 | AA17: =ROUND($T17*(AA8+AA9+AA13+AA10+AA11+AA14+AA15),$T$4) -> 0 | AD17: 95231
D18: 3 Frais de construction | I18: =IF(I19<G19,"tief",IF(I19>H19,"hoch","mittel")) -> hoch | N18: =IF(N19<L19,"Rohbau",IF(N19>M19,"ausgebaut","Edelrohbau")) -> Edelrohbau | S18: Coûts création/constru. total | X18: =X17+X16 -> 1331991.2 | AA18: =AA17+AA16 -> 0 | AD18: 1331991.2
C19: 30 | D19: Prix hors-sol BKP 2 (exkl. Honorare) | G19: 520 | H19: 620 | I19: 700 | L19: 400 | M19: 500 | N19: 403 | P19: =IF(P39=0,0,P42/P39) -> 700 | S19: Revenu
C20: =C19+1 -> 31 | D20: Prix sous-sol BKP 2 (exkl. Honorare) | I20: 401 | N20: 290 | P20: =IF(P40=0,0,P43/P40) -> 401 | S20: Investisseur prix terrain ? | U20: kalk. Gains terrain | W20: 0.1667 | X20: =IF(G23=0,ROUND(X5*(1+$W20),$T$4),IF(G23=1,ROUND(X5*(1+$W20),$T$4),X5+X6)) -> 0 | Z20: 0.1667 | AA20: =IF(L23=0,ROUND(AA5*(1+$Z20),$T$4),IF(L23=1,ROUND(AA5*(1+$Z20),$T$4),AA5+AA6)) -> 0 | AD20: =AA20+X20 -> 0
C21: =C20+1 -> 32 | D21: Prix PP Garage int. BKP 2 (exkl. Honorare) | I21: 29200 | N21: 28400 | P21: =IF(P16=0,0,P44/P16) -> 0 | S21: Prix travail investisseur | X21: =ROUND((X23-X20)/(1+$T22),$T4) -> 2172134 | AA21: =ROUND((AA23-AA20)/(1+$T22),$T4) -> 0 | AD21: =AA21+X21 -> 2172134
D22: 4 Rendement | S22: TVA | T22: =T17 -> 0.077 | X22: =ROUND(X21*$T22,$T$4) -> 167254 | AA22: =ROUND(AA21*$T22,$T$4) -> 0 | AD22: =AA22+X22 -> 167254
C23: 40 | D23: Devestitionsform (desinvestissement pas capter) | G23: 2 | I23: =IF(G23=0,"Objektkauf",IF(G23=1,"Werk + Land","Werk")) -> Werk | L23: 1 | N23: =IF(L23=0,"Objektkauf",IF(L23=1,"Werk + Land","Werk")) -> Werk + Land | S23: Coûts d'investissement | U23: Valeurs acquise capitalisée | X23: =IF(G24=0,ROUND(I54,$T$4),ROUND(I59,$T$4)) -> 2339388 | AA23: =IF(L24=0,ROUND(N54,$T$4),ROUND(N59,$T$28)) -> 0 | AD23: =AA23+X23 -> 2339388
C24: =C23+1 -> 41 | D24: Calcul de rendement basé sur | G24: 1 | I24: =IF(G24=0,"Revenu Locatif","Produit de la vente") -> Produit de la vente | L24: 0 | N24: =IF(L24=0,"Mieterlös","Verkaufserlös") -> Mieterlös | S24: Gain de développement (Hors tva exkl. MwSt.,)
C25: =C24+1 -> 42 | D25: Revenu locatif par m2 | G25: 220 | H25: 270 | I25: 267 | N25: 255 | P25: =IF(K49=0,0,P49/K49) -> 0
C26: =C25+1 -> 43 | D26: Revenu locatif sous-sol | I26: 80 | N26: 80 | P26: =IF(K50=0,0,P50/K50) -> 0
C27: =C26+1 -> 44 | D27: Revenu locatif par garage | I27: 150 | N27: 190 | P27: =IF(K51=0,0,P51/K51/12) -> 0
C28: 45 | D28: Revenu locatif par place de parc | N28: 80 | P28: =IF(K52=0,0,P52/K52/12) -> 
C29: 46 | D29: Taux de capitalisation | G29: 400 | I29: =G29/10000 -> 0.04 | L29: 400 | N29: =L29/10000 -> 0.04 | P29: =IF(P54=G2401,0,P53/P54) -> 0 | S29: Evolution revenu, hors tva. | X29: =IF(G23=2,X21,X23-X22) -> 2172134 | AA29: =IF(L23=2,AA21,AA23-AA22) -> 0 | AD29: =AA29+X29 -> 2172134
C30: =C29+1 -> 47 | D30: Produit des ventes hors sol par surface utilisable | I30: 9950 | N30: 10000 | P30: =IF(K55=0,0,P55/K55) -> 9950 | S30: Developpeurs de coûts tiers, exkl. MwSt. | X30: =IF(G23=2,X16-X15-X7-X6-X5,X16-X15) -> 1215511.2 | AA30: =IF(L23=2,AA16-AA15-AA7-AA6-AA5,AA16-AA15) -> 0 | AD30: =AA30+X30 -> 1215511.2
C31: =C30+1 -> 48 | D31: Produit des ventes sous-sol par surface utilisable | I31: 2000 | N31: 1500 | P31: =IF(K56=0,0,P56/K56) -> 2000 | S31: Marge de contribution 1 (exkl. Contribution propres) | W31: =IF(X16=0,0,X31/X16) -> 0.7734909322 | X31: =X29-X30 -> 956622.8 | Z31: =IF(AA16=0,0,AA31/AA16) -> 0 | AA31: =AA29-AA30 -> 0 | AC31: =IF(AD16=0,0,AD31/AD16) -> 0.7734909322 | AD31: =AA31+X31 -> 956622.8
C32: =C31+1 -> 49 | D32: Produit des ventes PP Garage | I32: 40000 | N32: 40000 | P32: =IF(K57=0,0,P57/K57) -> 0 | S32: Contribution propre | X32: =X15 -> 21249 | AA32: =AA15 -> 0 | AD32: =AA32+X32 -> 21249
C33: 50 | D33: Produit des ventes PP Parking | I33: 6000 | N33: 60000 | P33: =IF(K58=0,0,P58/K58) -> 6000 | S33: Marge de contribution 2 | W33: =IF(X16=0,0,X33/X16) -> 0.7563097519 | X33: =X31-X32 -> 935373.8 | Z33: =IF(AA16=0,0,AA33/AA16) -> 0 | AA33: =AA31-AA32 -> 0 | AC33: =IF(AD16=0,0,AD33/AD16) -> 0.7563097519 | AD33: =AA33+X33 -> 935373.8
D35: Haftungsausschluss: | F35: Das vorliegende Modell dient einzig zu Schulungszwecken und ist für den kommerziellen Einsatz nicht geeignet. Der Ersteller lehnt jegliche Haftungsforderungen ab. | X35: Version 1.3 / 26.06.13 / UEO
D38: 5 Hilfskalkulationen
D39: Volumen OG | I39: =I8*I9*0.01 -> 741 | N39: =N8*N9*0.01 -> 0 | P39: =N39+I39 -> 741 | W39: DB | X39: =X31 -> 956622.8 | AA39: =AA31 -> 0
D40: Volumen UG | I40: =I11*I12*0.01 -> 369.2 | N40: =N11*N12*0.01 -> 0 | P40: =N40+I40 -> 369.2 | W40: Kosten | X40: =X30 -> 1215511.2 | AA40: =AA30 -> 0
D41: Volumen tot | I41: =I40+I39 -> 1110.2 | N41: =N40+N39 -> 0 | P41: 1110.2 | W41: Erlös | Y41: =X29 -> 2172134 | AB41: =AA29 -> 0
D42: Kosten OG | I42: =I19*I39 -> 518700 | N42: =N19*N39 -> 0 | P42: 518700
D43: Kosten UG | I43: =I20*I40 -> 148049.2 | N43: =N20*N40 -> 0 | P43: 148049.2
D44: Kosten PP | I44: =I16*I21 -> 0 | N44: =N16*N21 -> 0 | P44: 0
D45: Kosten Total | I45: =SUM(I42:I44) -> 666749.2 | N45: =SUM(N42:N44) -> 0 | P45: 666749.2
D46: Ertragsfläche OG | I46: =I8*I10 -> 228 | N46: =N8*N10 -> 0 | P46: 228
D47: Ertragsfläche UG | I47: =I13*I11 -> 29.394 | N47: =N13*N11 -> 0 | P47: 29.394
D48: Ertragsfläche Tot | I48: =I47+I46 -> 257.394 | N48: =N47+N46 -> 0 | P48: 257.394
D49: Ertrag OG | H49: =I49/I25 -> 0 | I49: =IF(G$24=1,0,I46*I25) -> 0 | K49: =SUM(H49,M49) -> 0 | M49: =N49/N25 -> 0 | N49: =IF(L$24=1,0,N46*N25) -> 0 | P49: 0
D50: Ertrag UG | H50: =I50/I26 -> 0 | I50: =IF(G$24=1,0,I47*I26) -> 0 | K50: =SUM(H50,M50) -> 0 | M50: =N50/N26 -> 0 | N50: =IF(L$24=1,0,N47*N26) -> 0 | P50: 0
D51: Ertrag PP G | H51: =I51/I27/12 -> 0 | I51: =IF(G$24=1,0,I16*I27*12) -> 0 | K51: =SUM(H51,M51) -> 0 | M51: =N51/N27/12 -> 0 | N51: =IF(L$24=1,0,N16*N27*12) -> 0 | P51: 0
D52: Ertrag PP A | H52: =I52/I28/12 ->  | I52: =IF(G$24=1,0,I17*I28*12) -> 0 | K52: =SUM(H52,M52) ->  | M52: =N52/N28/12 -> 0 | N52: =IF(L$24=1,0,N17*N28*12) -> 0 | P52: 0
D53: Ertrag Total | I53: =SUM(I49:I52) -> 0 | N53: =SUM(N49:N52) -> 0 | P53: 0
D54: kapitalisiert | I54: =I53/I29 -> 0 | N54: =N53/N29 -> 0 | P54: 0
D55: Ertrag OG Kauf | H55: =I55/I30 -> 228 | I55: =IF(G$24=0,0,I30*I46) -> 2268600 | K55: =SUM(H55,M55) -> 228 | M55: =N55/N30 -> 0 | N55: =IF(L$24=0,0,N30*N46) -> 0 | P55: =N55+I55 -> 2268600
D56: Ertrag UG Kauf | H56: =I56/I31 -> 29.394 | I56: =IF(G$24=0,0,I31*I47) -> 58788 | K56: =SUM(H56,M56) -> 29.394 | M56: =N56/N31 -> 0 | N56: =IF(L$24=0,0,N31*N47) -> 0 | P56: 58788
D57: Ertrag PP G Kauf | H57: =I57/I32 -> 0 | I57: =IF(G$24=0,0,I32*I16) -> 0 | K57: =SUM(H57,M57) -> 0 | M57: =N57/N32 -> 0 | N57: =IF(L$24=0,0,N32*N16) -> 0 | P57: 0
D58: Ertrag PP A Kauf | H58: =I58/I33 -> 2 | I58: =IF(G$24=0,0,I33*I17) -> 12000 | K58: =SUM(H58,M58) -> 2 | M58: =N58/N33 -> 0 | N58: =IF(L$24=0,0,N33*N17) -> 0 | P58: 12000
D59: Ertrag Total | I59: =SUM(I55:I58) -> 2339388 | N59: =SUM(N55:N58) -> 0 | P59: 2339388
